Organisation Name,Organisation Code,Directorate/Service,Service Category Label,Service Code,Supplier Name,Supplier Reference,Payment Date,Transaction Number,Net Payments,Purpose of Spend
North West Leicestershire District Council,31UH,Housing,HRA Housing Management,HRAHM,ECO Skip Hire Ltd,A041559,02/10/2019,1383054,620,General Repairs
North West Leicestershire District Council,31UH,Street Management,Environment Transport,ENOT,Ford & Slater Group Ltd,A000625,02/10/2019,1383946,345.56,Vehicle Repairs/Parts
North West Leicestershire District Council,31UH,Street Management,Environment Transport,ENOT,Mobile Hydraulics Ltd,A001131,02/10/2019,1384280,311.73,Operational Purchases
North West Leicestershire District Council,31UH,Neighbourhoods & Communities,N & C Community Safety,NACCS,The Office of the Police and Crime Commissioner for Leicestershire,A007096,02/10/2019,1384304,2000,Precept
North West Leicestershire District Council,31UH,Leisure & Culture,Cultural Services Arts & Events,CULTEV,Field and Lawn Ltd,A042594,02/10/2019,1384342,450,Event Expenditure
North West Leicestershire District Council,31UH,Leisure & Culture,Cultural Services Arts & Events,CULTEV,Field and Lawn Ltd,A042594,02/10/2019,1384343,5500,Event Expenditure
North West Leicestershire District Council,31UH,Leisure & Culture,Cultural Services Arts & Events,CULTEV,Field and Lawn Ltd,A042594,02/10/2019,1384351,1050,Event Expenditure
North West Leicestershire District Council,31UH,Environmental Health,Environmental Health & Licensing,EEHL,Valid Consultancy Limited,A041891,02/10/2019,1384354,1600,Private & Pool Water Sampling
North West Leicestershire District Council,31UH,Housing Strategy,Community - Housing Strategy,HS,Victoria Hotel Ltd,A027377,02/10/2019,1384369,910,Homelessness Prevention- Accomodation
North West Leicestershire District Council,31UH,Housing Strategy,Community - Housing Strategy,HS,Victoria Hotel Ltd,A027377,02/10/2019,1384370,350,Homelessness Prevention- Accomodation
North West Leicestershire District Council,31UH,Housing,HRA Housing Management,HRAHM,HQN Ltd,A007983,02/10/2019,1384405,250,Subscriptions
North West Leicestershire District Council,31UH,Street Management,Environment Transport,ENOT,Certas Energy Uk Ltd,A043448,02/10/2019,1384825,571.97,Fuel
North West Leicestershire District Council,31UH,Property Services,Property Facilities Management,PROPFM,DMW Environmental Safety Ltd,A044203,02/10/2019,1384833,380.65,Legal & Professional Services
North West Leicestershire District Council,31UH,Environmental Health,Environmental Health & Licensing,EEHL,Eville And Jones Limited,A033670,02/10/2019,1384836,571.45,Vet Inspection
North West Leicestershire District Council,31UH,Property Services,Property Facilities Management,PROPFM,Gleam Team Services Limited,A000129,02/10/2019,1384873,350,Service Contracts - Premises costs
North West Leicestershire District Council,31UH,Street Management,Environment Transport,ENOT,Westbury Industrial Supplies Limited,A009933,02/10/2019,1384909,900.02,Protective Clothing
North West Leicestershire District Council,31UH,Housing Repairs,HRA Housing Repairs & Maintenance,HRAHRM,Ashby De La Zouch Town Council,A000091,02/10/2019,1384916,2419,Precept
North West Leicestershire District Council,31UH,Street Management,Environment Parks,ENOP,ERA,A045554,02/10/2019,1382130,254.3,Operational Purchases
North West Leicestershire District Council,31UH,Information Technology,ICT Services,ICT,ACS Systems (UK) Ltd T/a ACS Office Solutions,A043447,02/10/2019,1384024,683.2,Admin Equipment - Hire/Rental
North West Leicestershire District Council,31UH,Street Management,Environment Waste Management,ENOWM,Reflec Signs & Graphics Ltd,A025348,02/10/2019,1384097,640,Event Expenditure
North West Leicestershire District Council,31UH,Housing,HRA Performance & Business Support,HRAPBS,MRC Community Action,A001208,02/10/2019,1384267,340,HRA Hardship Fund Expenditure
North West Leicestershire District Council,31UH,Property Services,Property Facilities Management,PROPFM,John Merison BMC Ltd,A001092,02/10/2019,1384659,437.14,General Repairs
North West Leicestershire District Council,31UH,Street Management,Environment Transport,ENOT,WasteCare Group Ltd,A041331,02/10/2019,1384804,338.95,Hire Of Operational Equipment
North West Leicestershire District Council,31UH,Street Management,Environment Waste Management,ENOWM,One51 ES Plastics(UK) Ltd  t/a MGB Plastics,A044595,02/10/2019,1384814,9150,General Materials
North West Leicestershire District Council,31UH,Leisure & Culture,Sport & Physical Activity,SPA,Leicestershire County Council,A000950,02/10/2019,1384817,280,Parking Levy
North West Leicestershire District Council,31UH,Housing,HRA Performance & Business Support,HRAPBS,CLB Surveys,A045701,02/10/2019,1384821,480,Home Loss Payment and Compensation
North West Leicestershire District Council,31UH,Street Management,Environment Transport,ENOT,Certas Energy Uk Ltd,A043448,02/10/2019,1384824,19185.71,Fuel
North West Leicestershire District Council,31UH,Property Services,Property Commercial Lettings,PROPCL,John Merison BMC Ltd,A001092,02/10/2019,1384826,4988.94,General Repairs
North West Leicestershire District Council,31UH,Property Services,Property Commercial Lettings,PROPCL,John Merison BMC Ltd,A001092,02/10/2019,1384827,614.79,General Repairs
North West Leicestershire District Council,31UH,Neighbourhoods & Communities,N & C Community Safety,NACCS,JNE Security,A044895,02/10/2019,1384831,638,PCC Early Intervention Expenditure
North West Leicestershire District Council,31UH,Property Services,Property Facilities Management,PROPFM,DMW Environmental Safety Ltd,A044203,02/10/2019,1384832,304.52,Legal & Professional Services
North West Leicestershire District Council,31UH,Information Technology,ICT Services,ICT,Cuttlefish Multimedia Ltd,A032102,02/10/2019,1384835,1718.33,Stock Condition Survey
North West Leicestershire District Council,31UH,Corporate Director,Human Resources,HR,GatenbySanderson Limited,A034524,02/10/2019,1384851,15495,Employee Advertising
North West Leicestershire District Council,31UH,Finance,Financial Planning,FINPLA,Venn Group Limited,A028530,02/10/2019,1384869,1260,Agency Staff
North West Leicestershire District Council,31UH,Information Technology,ICT Services,ICT,Stone Computers Ltd,A023214,02/10/2019,1384878,587.1,Operational Equipment
North West Leicestershire District Council,31UH,Information Technology,ICT Services,ICT,Idox Software Ltd,A034157,02/10/2019,1384887,475,Admin Equipment - Maintenance
North West Leicestershire District Council,31UH,Street Management,Environment Transport,ENOT,WasteParts UK Limited,A036236,02/10/2019,1384888,470,Repairs - Parts
North West Leicestershire District Council,31UH,Corporate Director,Human Resources,HR,Spectra Security Limited,A002190,02/10/2019,1384895,315.3,Service Contracts - Premises costs
North West Leicestershire District Council,31UH,Housing Repairs,HRA Housing Repairs & Maintenance,HRAHRM,Leicestershire County Council,A000950,02/10/2019,1384896,809.26,Parking Levy
North West Leicestershire District Council,31UH,Housing Repairs,HRA Housing Repairs & Maintenance,HRAHRM,Leicestershire County Council,A000950,02/10/2019,1384897,989.11,Parking Levy
North West Leicestershire District Council,31UH,Street Management,Environment Parks,ENOP,CLB Cleanequip Limited,A045561,02/10/2019,1384906,550,Operational Equipment/Purchases
North West Leicestershire District Council,31UH,Finance,Revenues,REVS,Hinckley & Bosworth Borough Council,A000770,02/10/2019,1384912,17541,Shared Revs & Bens Partnership costs
North West Leicestershire District Council,31UH,Chief Exec,Chief Executive,CHEX,Sable Leigh Consultancy Ltd T/A SLC Rail,A042727,02/10/2019,1384917,4113.95,Consultants Fees
North West Leicestershire District Council,31UH,Street Management,Environment Transport,ENOT,Geesink Norba Limited,A017895,02/10/2019,1384918,269.5,Repairs - Parts
North West Leicestershire District Council,31UH,Leisure & Culture,Cultural Services Arts & Events,CULTEV,One Stop Promotions (Leics) Ltd,A001240,02/10/2019,1384867,515,Event Expenditure
North West Leicestershire District Council,31UH,Leisure & Culture,Cultural Services Arts & Events,CULTEV,Chameleon Pro Audio T/A Lux Technical Ltd,A027592,02/10/2019,1384883,944.4,General Repairs
North West Leicestershire District Council,31UH,Street Management,Environment - Street Scene,ESS,Indepth Hygiene Services Ltd,A044507,02/10/2019,1384905,766,Contract Payments (Other) Ext
North West Leicestershire District Council,31UH,Housing Repairs,HRA Housing Repairs & Maintenance,HRAHRM,Alliance Consulting Solutions Ltd,A043783,02/10/2019,1384915,2542,Consultants Fees
North West Leicestershire District Council,31UH,Property Services,Property Facilities Management,PROPFM,T Denman & Sons Ltd,A030887,02/10/2019,1384937,6072.6,General Repairs
North West Leicestershire District Council,31UH,Information Technology,ICT Services,ICT,Capita Business Services Ltd,A002968,02/10/2019,1384938,562.5,Computing
North West Leicestershire District Council,31UH,Street Management,Environment - Street Scene,ESS,DoorTechnik,A042985,02/10/2019,1384946,265.04,General Repairs
North West Leicestershire District Council,31UH,Property Services,Property Commercial Lettings,PROPCL,Urban Planters Leicestershire (limited),A003371,02/10/2019,1384953,552.5,Internal Decorations
North West Leicestershire District Council,31UH,Information Technology,ICT Services,ICT,ACS Systems (UK) Ltd T/a ACS Office Solutions,A043447,02/10/2019,1384957,288,Admin Equipment - Hire/Rental
North West Leicestershire District Council,31UH,Street Management,Environment Transport,ENOT,Trade Price Windscreens Ltd,A040486,02/10/2019,1384964,540,Repairs - Parts
North West Leicestershire District Council,31UH,Housing Repairs,HRA Housing Repairs & Maintenance,HRAHRM,Travis Perkins Trading Co Ltd,A001693,02/10/2019,1385047,590,General Materials
North West Leicestershire District Council,31UH,Information Technology,ICT Services,ICT,Freedom Communications (UK) Ltd,A032826,02/10/2019,1385056,3775,Telephone and Broadband
North West Leicestershire District Council,31UH,Finance,Head of Finance,HOFI,Leicestershire County Council,A000950,02/10/2019,1385060,2606721,Parking Levy
North West Leicestershire District Council,31UH,Economic Development,Business Focus Group,BFG,Building Business Consultancy Ltd,A045433,02/10/2019,1384932,3333.33,Consultants Fees
North West Leicestershire District Council,31UH,Property Services,Property Facilities Management,PROPFM,Chameleon Pro Audio T/A Lux Technical Ltd,A027592,02/10/2019,1384935,286.9,General Repairs
North West Leicestershire District Council,31UH,Property Services,Property Facilities Management,PROPFM,Chameleon Pro Audio T/A Lux Technical Ltd,A027592,02/10/2019,1384936,286.9,General Repairs
North West Leicestershire District Council,31UH,Street Management,Environment - Street Scene,ESS,DarntonB3 Limited,A045505,02/10/2019,1384954,900,Contract Payments (Other) Ext
North West Leicestershire District Council,31UH,Street Management,Environment Transport,ENOT,Ford & Slater Group Ltd,A000625,02/10/2019,1384962,366.55,Vehicle Repairs/Parts
North West Leicestershire District Council,31UH,Legal & Democratic,Legal Services,LDLS,Sellick Partnership (East Midlands) Limited,A036668,02/10/2019,1384970,1580.69,Agency Staff
North West Leicestershire District Council,31UH,Housing,HRA Housing Management,HRAHM,Taylor Bloxham Ltd,A037241,02/10/2019,1385042,847,Annual Report To Tenants
North West Leicestershire District Council,31UH,Housing Repairs,HRA Housing Repairs & Maintenance,HRAHRM,Travis Perkins Trading Co Ltd,A001693,02/10/2019,1385043,590,General Materials
North West Leicestershire District Council,31UH,Housing Repairs,HRA Housing Repairs & Maintenance,HRAHRM,Travis Perkins Trading Co Ltd,A001693,02/10/2019,1385044,2207.25,General Materials
North West Leicestershire District Council,31UH,Housing Repairs,HRA Housing Repairs & Maintenance,HRAHRM,Travis Perkins Trading Co Ltd,A001693,02/10/2019,1385045,92084.23,General Materials
North West Leicestershire District Council,31UH,Housing Repairs,HRA Housing Repairs & Maintenance,HRAHRM,Travis Perkins Trading Co Ltd,A001693,02/10/2019,1385046,992.77,General Materials
North West Leicestershire District Council,31UH,Housing,HRA Housing Management,HRAHM,Aareon UK Ltd,A045197,02/10/2019,1385051,550,Contract Payments (Other) Ext
North West Leicestershire District Council,31UH,Housing,HRA Housing Management,HRAHM,Aareon UK Ltd,A045197,02/10/2019,1385052,550,Contract Payments (Other) Ext
North West Leicestershire District Council,31UH,Housing Repairs,HRA Housing Repairs & Maintenance,HRAHRM,Aareon UK Ltd,A045197,02/10/2019,1385053,550,Contract Payments (Other) Ext
North West Leicestershire District Council,31UH,Housing,HRA Housing Management,HRAHM,Aareon UK Ltd,A045197,02/10/2019,1385054,550,Contract Payments (Other) Ext
North West Leicestershire District Council,31UH,Housing,HRA Housing Management,HRAHM,Aareon UK Ltd,A045197,02/10/2019,1385055,550,Contract Payments (Other) Ext
North West Leicestershire District Council,31UH,Housing,HRA Performance & Business Support,HRAPBS,Gresham Office Furniture Ltd,A045276,09/10/2019,1384657,2037,Office Furniture
North West Leicestershire District Council,31UH,Street Management,Environment Parks,ENOP,Coalville Signs,A000370,09/10/2019,1384843,683,Signs & Notices
North West Leicestershire District Council,31UH,Information Technology,ICT Services,ICT,Phoenix Software Limited,A001298,09/10/2019,1384961,3655.82,Administrative Equipment Purchase and Maintenance
North West Leicestershire District Council,31UH,Legal & Democratic,Business Development Team,BDT,InPhase Ltd,A044108,09/10/2019,1385115,3000,Computing
North West Leicestershire District Council,31UH,Street Management,Environment Transport,ENOT,S & B Tyres Limited,A034071,09/10/2019,1385136,412,Transport Costs - Tyres
North West Leicestershire District Council,31UH,Street Management,Environment - Street Scene,ESS,SLH Planning Solutions Limited,A044102,09/10/2019,1385147,4467,Consultants Fees
North West Leicestershire District Council,31UH,Property Services,Property Commercial Lettings,PROPCL,Purchase Power,A008204,09/10/2019,1385171,2003.14,Postages
North West Leicestershire District Council,31UH,Information Technology,ICT Services,ICT,ACS Systems (UK) Ltd T/a ACS Office Solutions,A043447,09/10/2019,1385172,250,Admin Equipment - Hire/Rental
North West Leicestershire District Council,31UH,Finance,Financial Planning,FINPLA,Arlingclose Ltd,A035603,09/10/2019,1385174,10773,Consultants Fees
North West Leicestershire District Council,31UH,Street Management,Environment Transport,ENOT,Selby's Garage (Woodhouse) Ltd,A044011,09/10/2019,1385175,673.88,Hire Of Operational Equipment
North West Leicestershire District Council,31UH,Street Management,Environment Transport,ENOT,Westbury Industrial Supplies Limited,A009933,09/10/2019,1385177,848.64,Protective Clothing
North West Leicestershire District Council,31UH,Planning & Development,Environment Planning Policy,EPP,DTA Ecology Ltd,A042148,09/10/2019,1385185,2362.5,Legal & Professional Services
North West Leicestershire District Council,31UH,Leisure & Culture,Cultural Services Arts & Events,CULTEV,KIWA CMT Testing,A045670,30/10/2019,1386111,1090,Consultants Fees
North West Leicestershire District Council,31UH,Chief Exec,Chief Executive,CHEX,Marchini Curran Planning,A044489,09/10/2019,1385209,5600,Consultants Fees
North West Leicestershire District Council,31UH,Housing Repairs,HRA Housing Repairs & Maintenance,HRAHRM,Ward Recycling,A035471,09/10/2019,1385241,965.26,Tipping Charges
North West Leicestershire District Council,31UH,Information Technology,ICT Services,ICT,ACS Systems (UK) Ltd T/a ACS Office Solutions,A043447,09/10/2019,1385219,6000,Admin Equipment - Hire/Rental
North West Leicestershire District Council,31UH,Street Management,Environment Parks,ENOP,Regarde Security Ltd,A013049,09/10/2019,1385227,903,Security Services
North West Leicestershire District Council,31UH,Street Management,Environment Transport,ENOT,Ford & Slater Group Ltd,A000625,09/10/2019,1385256,405.6,Vehicle Repairs/Parts
North West Leicestershire District Council,31UH,Leisure & Culture,Cultural Services Arts & Events,CULTEV,Field and Lawn Ltd,A042594,09/10/2019,1385260,2345,Event Expenditure
North West Leicestershire District Council,31UH,Housing Repairs,HRA Housing Repairs & Maintenance,HRAHRM,CLC Contractors Ltd,A044213,09/10/2019,1383761,25352.13,Fire Prevention and Maintenance
North West Leicestershire District Council,31UH,Information Technology,ICT Services,ICT,Idox Software Ltd,A034157,09/10/2019,1384306,7125,Admin Equipment - Maintenance
North West Leicestershire District Council,31UH,Street Management,Environment - Street Scene,ESS,John Merison BMC Ltd,A001092,09/10/2019,1384658,416.86,General Repairs
North West Leicestershire District Council,31UH,Legal & Democratic,Legal Services,LDLS,Sellick Partnership (East Midlands) Limited,A036668,09/10/2019,1384862,390.39,Agency Staff
North West Leicestershire District Council,31UH,Housing Repairs,HRA Housing Repairs & Maintenance,HRAHRM,CLC Contractors Ltd,A044213,09/10/2019,1384907,12822.83,Fire Prevention and Maintenance
North West Leicestershire District Council,31UH,Housing,HRA Tenant Participation,HRATP,Alysium Consulting,A043813,09/10/2019,1385117,1034.8,Contract Payments (Other) Ext
North West Leicestershire District Council,31UH,Housing Repairs,HRA Capital,HRACAP,Tunstall Healthcare (UK) Limited,A001701,09/10/2019,1385141,8487.6,Alarm System Telephones
North West Leicestershire District Council,31UH,Housing Repairs,HRA Capital,HRACAP,Tunstall Healthcare (UK) Limited,A001701,09/10/2019,1385142,3832.51,Alarm System Telephones
North West Leicestershire District Council,31UH,Street Management,Environment - Street Scene,ESS,Metric Group Ltd (Sales),A028996,09/10/2019,1385143,261,Subscriptions
North West Leicestershire District Council,31UH,Street Management,Environment Parks,ENOP,First Central Developments Limited,A037180,09/10/2019,1385208,455.9,Operational Equipment,,,ask Pete
North West Leicestershire District Council,31UH,Street Management,Environment - Street Scene,ESS,Dynamic Development Services Limited,A043778,09/10/2019,1385145,7203,Consultants Fees
North West Leicestershire District Council,31UH,Housing Repairs,HRA Housing Repairs & Maintenance,HRAHRM,Nuaire Trading Division of Polypipe Ltd,A045655,09/10/2019,1385164,1260,General Materials
North West Leicestershire District Council,31UH,Housing,HRA Housing Management,HRAHM,Coalville Yellow Cabs,A041983,09/10/2019,1385165,638.5,Public Transport
North West Leicestershire District Council,31UH,Housing,HRA Tenant Participation,HRATP,Aareon UK Ltd,A045197,09/10/2019,1385166,870,Contract Payments (Other) Ext
North West Leicestershire District Council,31UH,Housing,HRA Tenant Participation,HRATP,Aareon UK Ltd,A045197,09/10/2019,1385167,870,Contract Payments (Other) Ext
North West Leicestershire District Council,31UH,Housing,HRA Housing Management,HRAHM,Motion Picture Licensing Company Ltd,A041959,09/10/2019,1385178,769.39,Licences
North West Leicestershire District Council,31UH,Street Management,Environment Transport,ENOT,Partic Motor Spares Ltd,A042528,09/10/2019,1385180,285,Repairs - Parts
North West Leicestershire District Council,31UH,Neighbourhoods & Communities,N & C Community Safety,NACCS,Streetvibe Young Peoples Service,A044943,09/10/2019,1385207,3687.5,Contribution to Youth Services
North West Leicestershire District Council,31UH,Housing,HRA Performance & Business Support,HRAPBS,Baily Garner LLP,A043845,09/10/2019,1385230,1510.15,Legal & Professional Services
North West Leicestershire District Council,31UH,Finance,Revenues,REVS,Northgate Public Services Uk Ltd,A045302,09/10/2019,1385261,749.65,Legal & Professional Services
North West Leicestershire District Council,31UH,Housing Repairs,HRA Housing Repairs & Maintenance,HRAHRM,Michael Dyson Associates Ltd,A028431,09/10/2019,1385272,2016,Consultants Fees
North West Leicestershire District Council,31UH,Finance,Financial Planning,FINPLA,Michael Page International Recruitment Ltd,A041893,09/10/2019,1385186,5880,Agency Staff
North West Leicestershire District Council,31UH,Finance,Financial Planning,FINPLA,Venn Group Limited,A028530,09/10/2019,1385187,945,Agency Staff
North West Leicestershire District Council,31UH,Planning & Development,Environment - Development Control,EDC,Trent Rivers Trust,A041633,09/10/2019,1385336,254.26,River Mease Project Expenditure
North West Leicestershire District Council,31UH,Corporate Director,Human Resources,HR,Wider Plan Ltd,A043948,09/10/2019,1385341,2097,Staff Benefit Scheme
North West Leicestershire District Council,31UH,Housing,HRA Performance & Business Support,HRAPBS,Baily Garner LLP,A043845,09/10/2019,1383876,5000,Legal & Professional Services
North West Leicestershire District Council,31UH,Housing,HRA Performance & Business Support,HRAPBS,Baily Garner LLP,A043845,09/10/2019,1383877,2640,Legal & Professional Services
North West Leicestershire District Council,31UH,Housing,HRA Performance & Business Support,HRAPBS,Baily Garner LLP,A043845,09/10/2019,1383878,3535,Legal & Professional Services
North West Leicestershire District Council,31UH,Property Services,Property Facilities Management,PROPFM,Spectra Security Limited,A002190,09/10/2019,1385123,397,Service Contracts - Premises costs
North West Leicestershire District Council,31UH,Legal & Democratic,Civic Expenses,LDCE,Civica Ltd,A021357,09/10/2019,1385148,3000,Computing
North West Leicestershire District Council,31UH,Environmental Health,Environmental Health & Licensing,EEHL,Vivid Resourcing,A044601,09/10/2019,1385262,496.58,Agency Staff
North West Leicestershire District Council,31UH,Street Management,Environment Waste Management,ENOWM,ESE World Limited,A001253,09/10/2019,1385277,1325,General Materials
North West Leicestershire District Council,31UH,Planning & Development,Environment - Development Control,EDC,Peter Brett Associates LLP,A028258,09/10/2019,1385350,1750,Legal & Professional Services
North West Leicestershire District Council,31UH,Chief Exec,Chief Executive,CHEX,IDP Group,A045557,15/10/2019,1385363,4200,Project Management Services
North West Leicestershire District Council,31UH,Chief Exec,Chief Executive,CHEX,IDP Group,A045557,15/10/2019,1385364,3750,Project Management Services
North West Leicestershire District Council,31UH,Chief Exec,Chief Executive,CHEX,CPRE Commercial Property Real Estates Ltd,A045187,15/10/2019,1385365,7800,Legal & Professional Services
North West Leicestershire District Council,31UH,Planning & Development,Environment Planning Policy,EPP,The Landscape Partnership,A044873,15/10/2019,1385366,1578,External Legal Fees & Advice
North West Leicestershire District Council,31UH,Neighbourhoods & Communities,N & C Community Safety,NACCS,Broadland Guarding Services Ltd,A042635,15/10/2019,1385367,3855.6,Agency Staff
North West Leicestershire District Council,31UH,Information Technology,ICT Services,ICT,Idox Software Ltd,A034157,15/10/2019,1385409,725,Admin Equipment - Maintenance
North West Leicestershire District Council,31UH,Planning & Development,Environment - Development Control,EDC,Jon Etchells Consulting Ltd,A029305,15/10/2019,1385411,325,External Legal Fees & Advice
North West Leicestershire District Council,31UH,Planning & Development,Environment - Development Control,EDC,GHM Planning Limited,A034296,15/10/2019,1385412,2295.5,Consultants Fees
North West Leicestershire District Council,31UH,Planning & Development,Environment - Development Control,EDC,GHM Planning Limited,A034296,15/10/2019,1385413,3171,Consultants Fees
North West Leicestershire District Council,31UH,Legal & Democratic,Civic Expenses,LDCE,Civica Ltd,A021357,15/10/2019,1385418,300,Computing
North West Leicestershire District Council,31UH,Property Services,Property Facilities Management,PROPFM,Regarde Security Ltd,A013049,15/10/2019,1385436,254.7,Security Services
North West Leicestershire District Council,31UH,Property Services,Property Facilities Management,PROPFM,Regarde Security Ltd,A013049,15/10/2019,1385437,679.2,Security Services
North West Leicestershire District Council,31UH,Property Services,Property Facilities Management,PROPFM,Regarde Security Ltd,A013049,15/10/2019,1385439,516,Security Services
North West Leicestershire District Council,31UH,Corporate Director,Human Resources,HR,DMW Environmental Safety Ltd,A044203,15/10/2019,1385441,485,Legal & Professional Services
North West Leicestershire District Council,31UH,Planning & Development,Environment - Development Control,EDC,TMP Worldwide Ltd,A045319,15/10/2019,1385447,528.58,Employee Advertising
North West Leicestershire District Council,31UH,Planning & Development,Environment - Development Control,EDC,TMP Worldwide Ltd,A045319,15/10/2019,1385448,465.08,Employee Advertising
North West Leicestershire District Council,31UH,Planning & Development,Environment - Development Control,EDC,TMP Worldwide Ltd,A045319,15/10/2019,1385449,465.08,Employee Advertising
North West Leicestershire District Council,31UH,Planning & Development,Environment - Development Control,EDC,TMP Worldwide Ltd,A045319,15/10/2019,1385450,713.33,Employee Advertising
North West Leicestershire District Council,31UH,Planning & Development,Environment - Development Control,EDC,TMP Worldwide Ltd,A045319,15/10/2019,1385451,643.39,Employee Advertising
North West Leicestershire District Council,31UH,Planning & Development,Environment - Development Control,EDC,TMP Worldwide Ltd,A045319,15/10/2019,1385452,735.84,Employee Advertising
North West Leicestershire District Council,31UH,Information Technology,ICT Services,ICT,Freedom Communications (UK) Ltd,A032826,15/10/2019,1385456,553.26,Telephone and Broadband
North West Leicestershire District Council,31UH,Planning & Development,Environment - Development Control,EDC,TMP Worldwide Ltd,A045319,15/10/2019,1385459,671.83,Employee Advertising
North West Leicestershire District Council,31UH,Planning & Development,Environment Planning Policy,EPP,Trevor Roberts Associates Ltd,A042339,15/10/2019,1385479,300,Training Expenses
North West Leicestershire District Council,31UH,Street Management,Environment Transport,ENOT,O Kay Engineering Services Ltd,A041943,15/10/2019,1385483,442,Operational Equipment
North West Leicestershire District Council,31UH,Housing Repairs,HRA Housing Repairs & Maintenance,HRAHRM,Bersche-Rolt Limited,A045483,15/10/2019,1385484,4917.97,Consultants Fees
North West Leicestershire District Council,31UH,Street Management,Environment Parks,ENOP,Gilvar Lining Ltd,A040848,15/10/2019,1385485,2295,Road and Car Park Markings
North West Leicestershire District Council,31UH,Street Management,Environment Parks,ENOP,Green Garden,A041601,15/10/2019,1385369,2426.5,Operational Purchases
North West Leicestershire District Council,31UH,Legal & Democratic,Legal Services,LDLS,Sellick Partnership (East Midlands) Limited,A036668,15/10/2019,1385378,1343.44,Agency Staff
North West Leicestershire District Council,31UH,Leisure & Culture,Cultural Services TIC,CULTIC,Live & Local Ltd,A043312,15/10/2019,1385406,1600,Event Expenditure
North West Leicestershire District Council,31UH,Property Services,Property Facilities Management,PROPFM,Regarde Security Ltd,A013049,15/10/2019,1385434,258,Security Services
North West Leicestershire District Council,31UH,Housing Strategy,Community - Housing Strategy,HS,Redacted - Personal Data,A044654,15/10/2019,1385442,950,Training Courses and Expenses
North West Leicestershire District Council,31UH,Street Management,Environment Parks,ENOP,Green Garden,A041601,15/10/2019,1385455,1965,Operational Purchases
North West Leicestershire District Council,31UH,Street Management,Environment Waste Management,ENOWM,Something Different (UK) Ltd,A040393,15/10/2019,1385477,851,Publicity & Promotion
North West Leicestershire District Council,31UH,Street Management,Environment Waste Management,ENOWM,Something Different (UK) Ltd,A040393,15/10/2019,1385478,261,Publicity & Promotion
North West Leicestershire District Council,31UH,Housing Repairs,HRA Housing Repairs & Maintenance,HRAHRM,Alliance Consulting Solutions Ltd,A043783,15/10/2019,1385114,2220,Consultants Fees
North West Leicestershire District Council,31UH,Housing,HRA Performance & Business Support,HRAPBS,Gresham Office Furniture Ltd,A045276,15/10/2019,1385263,540,Office Furniture
North West Leicestershire District Council,31UH,Information Technology,ICT Services,ICT,Phoenix Software Limited,A001298,15/10/2019,1385375,10677.89,Administrative Equipment Purchase and Maintenance
North West Leicestershire District Council,31UH,Environmental Health,Environmental Health & Licensing,EEHL,Vivid Resourcing,A044601,15/10/2019,1385453,514.32,Agency Staff
North West Leicestershire District Council,31UH,Street Management,Environment Transport,ENOT,Oakwood Environmental Services T/A Enva,A040993,15/10/2019,1385488,310,General Materials
North West Leicestershire District Council,31UH,Planning & Development,Environment - Development Control,EDC,TMP Worldwide Ltd,A045319,15/10/2019,1385501,426.62,Employee Advertising
North West Leicestershire District Council,31UH,Finance,Financial Planning,FINPLA,CIPFA Business Limited,A036780,15/10/2019,1385507,1276,Training Expenses
North West Leicestershire District Council,31UH,Housing Repairs,HRA Housing Repairs & Maintenance,HRAHRM,CLC Contractors Ltd,A044213,15/10/2019,1383762,41938.36,Fire Prevention and Maintenance
North West Leicestershire District Council,31UH,Street Management,Environment Transport,ENOT,L Warrington,A031408,15/10/2019,1384299,750,Vehicle Cleaning and valeting
North West Leicestershire District Council,31UH,Planning & Development,Environment - Development Control,EDC,Valuation Office Agency,A034291,15/10/2019,1384358,1750,External Legal Fees & Advice
North West Leicestershire District Council,31UH,Housing Repairs,HRA Housing Repairs & Maintenance,HRAHRM,Bersche-Rolt Limited,A045483,15/10/2019,1384627,3892.92,Consultants Fees
North West Leicestershire District Council,31UH,Housing Repairs,HRA Housing Repairs & Maintenance,HRAHRM,CLC Contractors Ltd,A044213,15/10/2019,1384908,29037.47,Fire Prevention and Maintenance
North West Leicestershire District Council,31UH,Planning & Development,Environment Planning Policy,EPP,Gillespies LLP,A045048,15/10/2019,1385124,250,Legal & Professional Services
North West Leicestershire District Council,31UH,Neighbourhoods & Communities,N & C Community Safety,NACCS,Age Concern Leics & Rutland,A041115,15/10/2019,1385271,5390,Grants
North West Leicestershire District Council,31UH,Leisure & Culture,Sport & Physical Activity,SPA,Physical Company Limited,A007199,15/10/2019,1385423,343.02,Room Hire
North West Leicestershire District Council,31UH,Property Services,Property Facilities Management,PROPFM,County Drains Leicester Ltd,A024295,15/10/2019,1385492,540,Asset Protection
North West Leicestershire District Council,31UH,Information Technology,ICT Services,ICT,BT Business Direct,A039207,15/10/2019,1385580,630,Computing
North West Leicestershire District Council,31UH,Information Technology,ICT Services,ICT,BT Business Direct,A039207,15/10/2019,1385581,647.1,Computing
North West Leicestershire District Council,31UH,Housing,HRA Performance & Business Support,HRAPBS,Northern Housing Consortium Ltd,A028253,15/10/2019,1385265,3172.17,Subscriptions
North West Leicestershire District Council,31UH,Street Management,Environment Transport,ENOT,Danline International Ltd,A029265,15/10/2019,1385275,257.5,Repairs - Parts
North West Leicestershire District Council,31UH,Street Management,Environment - Street Scene,ESS,Experian Ltd,A040275,15/10/2019,1385480,1750,Computing
North West Leicestershire District Council,31UH,Neighbourhoods & Communities,N & C Community Safety,NACCS,The Office of the Police and Crime Commissioner for Leicestershire,A007096,15/10/2019,1385495,375,Precept
North West Leicestershire District Council,31UH,Neighbourhoods & Communities,N & C Community Safety,NACCS,Baydale Control Systems Ltd,A042565,15/10/2019,1385503,2672.86,CCTV Maintenance
North West Leicestershire District Council,31UH,Street Management,Environment Transport,ENOT,Certas Energy Uk Ltd,A043448,15/10/2019,1385542,514.82,Fuel
North West Leicestershire District Council,31UH,Street Management,Environment Transport,ENOT,Certas Energy Uk Ltd,A043448,15/10/2019,1385543,18376.44,Fuel
North West Leicestershire District Council,31UH,Corporate Director,Human Resources,HR,Wider Plan Ltd,A043948,15/10/2019,1385550,1250,Staff Benefit Scheme
North West Leicestershire District Council,31UH,Information Technology,ICT Services,ICT,Six Degrees Technology Group Ltd,A044205,15/10/2019,1385588,4871,Admin Equipment - Maintenance
North West Leicestershire District Council,31UH,Chief Exec,Chief Executive,CHEX,Sable Leigh Consultancy Ltd T/A SLC Rail,A042727,15/10/2019,1385589,1661,Consultants Fees
North West Leicestershire District Council,31UH,Housing Repairs,HRA Housing Repairs & Maintenance,HRAHRM,Screwfix Direct,A014681,15/10/2019,1385119,758,General Materials
North West Leicestershire District Council,31UH,Property Services,Property Facilities Management,PROPFM,Phs Group Ltd,A009237,15/10/2019,1385130,304.56,General Repairs
North West Leicestershire District Council,31UH,Street Management,Environment Transport,ENOT,L Warrington,A031408,15/10/2019,1385684,1000,Vehicle Cleaning and valeting
North West Leicestershire District Council,31UH,Information Technology,ICT Services,ICT,ACS Systems (UK) Ltd T/a ACS Office Solutions,A043447,15/10/2019,1385672,975,Admin Equipment - Hire/Rental
North West Leicestershire District Council,31UH,Street Management,Environment Transport,ENOT,Terberg Matec UK Limited,A001647,15/10/2019,1385682,596.84,Non Insurance Damage
North West Leicestershire District Council,31UH,Street Management,Environment Transport,ENOT,Lee Wells Autobodies Ltd,A031849,15/10/2019,1385685,250,Non Insurance Damage
North West Leicestershire District Council,31UH,Information Technology,ICT Services,ICT,Freedom Communications (UK) Ltd,A032826,23/10/2019,1385057,2455.5,Telephone and Broadband
North West Leicestershire District Council,31UH,Street Management,Environment - Street Scene,ESS,Siemens Financial Services Ltd,A029510,23/10/2019,1385471,388.54,Equipment Operating Leases
North West Leicestershire District Council,31UH,Street Management,Environment - Street Scene,ESS,Dods Parliamentary Communications Ltd,A036291,23/10/2019,1385744,410,Training Course
North West Leicestershire District Council,31UH,Information Technology,ICT Services,ICT,Canon UK Ltd,A040459,23/10/2019,1385746,384.72,General Operational Equipment
North West Leicestershire District Council,31UH,Planning & Development,Environment Planning Policy,EPP,Peter Brett Associates LLP,A028258,23/10/2019,1384625,9727.6,Legal & Professional Services
North West Leicestershire District Council,31UH,Housing Repairs,HRA Housing Repairs & Maintenance,HRAHRM,MWUK Ltd  t/a Alexandra,A000033,23/10/2019,1384834,448.5,Protective Clothing
North West Leicestershire District Council,31UH,Street Management,Environment - Street Scene,ESS,Metric Group Ltd (Repairs),A036055,23/10/2019,1385407,406.92,Maintenance Contract
North West Leicestershire District Council,31UH,Housing Repairs,HRA Housing Repairs & Maintenance,HRAHRM,MWUK Ltd  t/a Alexandra,A000033,23/10/2019,1385420,351.45,Protective Clothing
North West Leicestershire District Council,31UH,Housing Repairs,HRA Housing Repairs & Maintenance,HRAHRM,MWUK Ltd  t/a Alexandra,A000033,23/10/2019,1385499,266.7,Protective Clothing
North West Leicestershire District Council,31UH,Housing Repairs,HRA Housing Repairs & Maintenance,HRAHRM,MWUK Ltd  t/a Alexandra,A000033,23/10/2019,1385500,286.2,Protective Clothing
North West Leicestershire District Council,31UH,Neighbourhoods & Communities,N & C Community Safety,NACCS,Everyone Active,A045678,23/10/2019,1385504,252,Premises Rents
North West Leicestershire District Council,31UH,Housing,HRA Tenant Participation,HRATP,Aareon UK Ltd,A045197,23/10/2019,1385732,870,Contract Payments (Other) Ext
North West Leicestershire District Council,31UH,Housing,HRA Tenant Participation,HRATP,Aareon UK Ltd,A045197,23/10/2019,1385733,870,Contract Payments (Other) Ext
North West Leicestershire District Council,31UH,Housing,HRA Tenant Participation,HRATP,Aareon UK Ltd,A045197,23/10/2019,1385734,870,Contract Payments (Other) Ext
North West Leicestershire District Council,31UH,Leisure & Culture,Cultural Services TIC,CULTIC,Leicestershire County Council,A000950,23/10/2019,1385737,675,Parking Levy
North West Leicestershire District Council,31UH,Street Management,Environment - Street Scene,ESS,IDP Group,A045557,23/10/2019,1385741,618.75,Project Management Services
North West Leicestershire District Council,31UH,Street Management,Environment - Street Scene,ESS,IDP Group,A045557,23/10/2019,1385742,4650,Project Management Services
North West Leicestershire District Council,31UH,Street Management,Environment Parks,ENOP,Autumn Memorials,A045555,23/10/2019,1385743,641.66,Operational Purchases
North West Leicestershire District Council,31UH,Property Services,Property Commercial Lettings,PROPCL,Coalville Cleaning Services,A003037,23/10/2019,1385775,615.33,Contract Cleaning
North West Leicestershire District Council,31UH,Property Services,Property Commercial Lettings,PROPCL,Coalville Cleaning Services,A003037,23/10/2019,1385778,327.17,Contract Cleaning
North West Leicestershire District Council,31UH,Street Management,Environment Parks,ENOP,Manor farm Nurseries,A034561,23/10/2019,1383441,749.05,General Materials
North West Leicestershire District Council,31UH,Finance,Financial Planning,FINPLA,Blaby District Council,A000180,23/10/2019,1385793,14756,Contributions
North West Leicestershire District Council,31UH,Finance,Financial Planning,FINPLA,Blaby District Council,A000180,23/10/2019,1385794,167578.5,Contributions
North West Leicestershire District Council,31UH,Housing,HRA Housing Management,HRAHM,Coalville Yellow Cabs,A041983,23/10/2019,1385815,416.75,Public Transport
North West Leicestershire District Council,31UH,Corporate Director,Human Resources,HR,Specsavers Corporate Eyecare,A028625,23/10/2019,1385833,525,Eye care Vouchers
North West Leicestershire District Council,31UH,Street Management,Environment Parks,ENOP,Groundsman Tools & Supplies LLP,A030744,23/10/2019,1385841,268.98,Operational Equipment/Purchases
North West Leicestershire District Council,31UH,Housing,HRA Housing Management,HRAHM,Aareon UK Ltd,A045197,23/10/2019,1385939,870,Contract Payments (Other) Ext
North West Leicestershire District Council,31UH,Housing,HRA Housing Management,HRAHM,Aareon UK Ltd,A045197,23/10/2019,1385940,870,Contract Payments (Other) Ext
North West Leicestershire District Council,31UH,Housing,HRA Housing Management,HRAHM,Aareon UK Ltd,A045197,23/10/2019,1385941,870,Contract Payments (Other) Ext
North West Leicestershire District Council,31UH,Housing,HRA Housing Management,HRAHM,Aareon UK Ltd,A045197,23/10/2019,1385942,870,Contract Payments (Other) Ext
North West Leicestershire District Council,31UH,Housing Repairs,HRA Housing Repairs & Maintenance,HRAHRM,HQN Ltd,A007983,23/10/2019,1385948,250,Subscriptions
North West Leicestershire District Council,31UH,Housing,HRA Older Persons Service,HRAOPS,Tunstall Healthcare (UK) Limited,A001701,23/10/2019,1385568,4560.6,Alarm System Telephones
North West Leicestershire District Council,31UH,Street Management,Environment Waste Management,ENOWM,Straight Plc,A024906,23/10/2019,1385673,1150,General Materials
North West Leicestershire District Council,31UH,Information Technology,ICT Services,ICT,Adept Telecom Plc,A044193,23/10/2019,1385770,13320.75,Admin Equipment - Maintenance
North West Leicestershire District Council,31UH,Property Services,Property Facilities Management,PROPFM,Wm Saunders Partnership LLP,A035772,23/10/2019,1385785,3950,Asset Protection
North West Leicestershire District Council,31UH,Information Technology,ICT Services,ICT,Premier Paper Group,A042438,23/10/2019,1385795,673.08,Consumable Materials
North West Leicestershire District Council,31UH,Information Technology,ICT Services,ICT,Nviron Limited,A023640,23/10/2019,1385801,868,Admin Equipment - Maintenance
North West Leicestershire District Council,31UH,Housing,HRA Performance & Business Support,HRAPBS,Gresham Office Furniture Ltd,A045276,23/10/2019,1385806,450,Office Furniture
North West Leicestershire District Council,31UH,Leisure & Culture,Cultural Services Arts & Events,CULTEV,AA Media Limited T/A AA Signs,A037217,23/10/2019,1385811,888,Special Events
North West Leicestershire District Council,31UH,Property Services,Property Facilities Management,PROPFM,MAC Consulting Limited,A045506,23/10/2019,1385834,11100,Consultants Fees
North West Leicestershire District Council,31UH,Housing,HRA Housing Management,HRAHM,TPAS Limited,A028863,23/10/2019,1385836,796,Training Expenses
North West Leicestershire District Council,31UH,Street Management,Environment Waste Management,ENOWM,ESE World Limited,A001253,23/10/2019,1385721,257.8,General Materials
North West Leicestershire District Council,31UH,Street Management,Environment Transport,ENOT,Terberg Matec UK Limited,A001647,23/10/2019,1385798,1183.55,Non Insurance Damage
North West Leicestershire District Council,31UH,Street Management,Environment Waste Management,ENOWM,ESE World Limited,A001253,23/10/2019,1385802,1063.5,General Materials
North West Leicestershire District Council,31UH,Street Management,Environment Waste Management,ENOWM,Groundsman Tools & Supplies LLP,A030744,23/10/2019,1385803,866.25,Operational Equipment/Purchases
North West Leicestershire District Council,31UH,Street Management,Environment Waste Management,ENOWM,Groundsman Tools & Supplies LLP,A030744,23/10/2019,1385804,789.25,Operational Equipment/Purchases
North West Leicestershire District Council,31UH,Information Technology,ICT Services,ICT,Cable & Wireless Worldwide,A038473,23/10/2019,1385938,2963.02,Admin Equipment - Maintenance
North West Leicestershire District Council,31UH,Housing Repairs,HRA Housing Repairs & Maintenance,HRAHRM,MWUK Ltd  t/a Alexandra,A000033,30/10/2019,1384655,333.3,Protective Clothing
North West Leicestershire District Council,31UH,Housing Repairs,HRA Housing Repairs & Maintenance,HRAHRM,MWUK Ltd  t/a Alexandra,A000033,30/10/2019,1384683,358.8,Protective Clothing
North West Leicestershire District Council,31UH,Housing Repairs,HRA Housing Repairs & Maintenance,HRAHRM,Arco Limited,A000068,30/10/2019,1385540,280.34,Operational Equipment/Purchases
North West Leicestershire District Council,31UH,Street Management,Environment Parks,ENOP,Central Construction Services,A004448,30/10/2019,1385720,260,Operational Purchases
North West Leicestershire District Council,31UH,Housing Repairs,HRA Housing Repairs & Maintenance,HRAHRM,Travis Perkins Trading Co Ltd,A001693,30/10/2019,1385781,885,General Materials
North West Leicestershire District Council,31UH,Housing Repairs,HRA Housing Repairs & Maintenance,HRAHRM,Travis Perkins Trading Co Ltd,A001693,30/10/2019,1385782,3212.19,General Materials
North West Leicestershire District Council,31UH,Housing Repairs,HRA Housing Repairs & Maintenance,HRAHRM,Travis Perkins Trading Co Ltd,A001693,30/10/2019,1385783,103130.45,General Materials
North West Leicestershire District Council,31UH,Housing,HRA Housing Management,HRAHM,Readings Property Group Ltd,A045486,30/10/2019,1385954,915,Legal & Professional Services
North West Leicestershire District Council,31UH,Property Services,Property Facilities Management,PROPFM,County Drains Leicester Ltd,A024295,30/10/2019,1385957,1794,Asset Protection
North West Leicestershire District Council,31UH,Neighbourhoods & Communities,N & C Community Safety,NACCS,Ashby De La Zouch Town Council,A000091,30/10/2019,1385964,758.45,Precept
North West Leicestershire District Council,31UH,Property Services,Property Commercial Lettings,PROPCL,Coalville Cleaning Services,A003037,30/10/2019,1385970,615.33,Contract Cleaning
North West Leicestershire District Council,31UH,Property Services,Property Commercial Lettings,PROPCL,Coalville Cleaning Services,A003037,30/10/2019,1385971,327.17,Contract Cleaning
North West Leicestershire District Council,31UH,Street Management,Environment Transport,ENOT,Parkers The Parts People,A044935,30/10/2019,1385974,389.7,Repairs - Parts
North West Leicestershire District Council,31UH,Property Services,Property Commercial Lettings,PROPCL,Coalville Cleaning Services,A003037,30/10/2019,1386028,327.17,Contract Cleaning
North West Leicestershire District Council,31UH,Property Services,Property Commercial Lettings,PROPCL,Coalville Cleaning Services,A003037,30/10/2019,1386029,615.33,Contract Cleaning
North West Leicestershire District Council,31UH,Property Services,Property Commercial Lettings,PROPCL,Coalville Cleaning Services,A003037,30/10/2019,1386030,250.4,Contract Cleaning
North West Leicestershire District Council,31UH,Environmental Health,Environmental Health & Licensing,EEHL,Vivid Resourcing,A044601,30/10/2019,1386074,1312.39,Agency Staff
North West Leicestershire District Council,31UH,Environmental Health,Environmental Health & Licensing,EEHL,Vivid Resourcing,A044601,30/10/2019,1386075,1303.52,Agency Staff
North West Leicestershire District Council,31UH,Housing Repairs,HRA Housing Repairs & Maintenance,HRAHRM,ESPO,A000958,06/11/2019,1385512,268.7,Operational Equipment
North West Leicestershire District Council,31UH,Street Management,Environment Parks,ENOP,Vitax Limited,A031093,30/10/2019,1385745,490,Operational Equipment/Purchases
North West Leicestershire District Council,31UH,Street Management,Environment - Street Scene,ESS,Cuckoo Gap Limited,A000438,30/10/2019,1385774,796,Repairs and resurfacing works
North West Leicestershire District Council,31UH,Information Technology,ICT Services,ICT,Freedom Communications (UK) Ltd,A032826,30/10/2019,1385786,575.28,Telephone and Broadband
North West Leicestershire District Council,31UH,Planning & Development,Environment - Development Control,EDC,Haymarket Media Group,A035826,30/10/2019,1385967,1950,External Event Booking
North West Leicestershire District Council,31UH,Street Management,Environment Transport,ENOT,Anderson Commercials Limited,A033469,30/10/2019,1385973,282,Mot Testing
North West Leicestershire District Council,31UH,Neighbourhoods & Communities,N & C Community Safety,NACCS,Solon Security,A035272,30/10/2019,1385988,500,PCC Early Intervention Expenditure
North West Leicestershire District Council,31UH,Property Services,Property Facilities Management,PROPFM,Readings Property Group Ltd,A045486,30/10/2019,1385989,1200,Legal & Professional Services
North West Leicestershire District Council,31UH,Property Services,Property Commercial Lettings,PROPCL,John Merison BMC Ltd,A001092,30/10/2019,1385991,326.9,General Repairs
North West Leicestershire District Council,31UH,Housing Repairs,HRA Housing Repairs & Maintenance,HRAHRM,Leicestershire County Council,A000950,30/10/2019,1386032,440.37,Parking Levy
North West Leicestershire District Council,31UH,Housing Repairs,HRA Housing Repairs & Maintenance,HRAHRM,Leicestershire County Council,A000950,30/10/2019,1386033,887.74,Parking Levy
North West Leicestershire District Council,31UH,Information Technology,ICT Services,ICT,Civica Ltd,A021357,30/10/2019,1386042,1500,Computing
North West Leicestershire District Council,31UH,Corporate Director,Human Resources,HR,DMW Environmental Safety Ltd,A044203,30/10/2019,1386053,650,Legal & Professional Services
North West Leicestershire District Council,31UH,Information Technology,ICT Services,ICT,Chess Cybersecurity Formerly Foursys Ltd,A029908,30/10/2019,1386056,710,Admin Equipment - Maintenance
North West Leicestershire District Council,31UH,Information Technology,ICT Services,ICT,Cuttlefish Multimedia Ltd,A032102,30/10/2019,1386057,1718.33,Stock Condition Survey
North West Leicestershire District Council,31UH,Street Management,Environment Transport,ENOT,WasteParts UK Limited,A036236,30/10/2019,1386068,344.32,Repairs - Parts
North West Leicestershire District Council,31UH,Neighbourhoods & Communities,N & C Community Safety,NACCS,Leicestershire County Council,A036728,30/10/2019,1386073,316.06,Parking Levy
North West Leicestershire District Council,31UH,Information Technology,ICT Services,ICT,Dell Computer Corporation Ltd,A000470,31/10/2019,1386076,628.44,Computing
North West Leicestershire District Council,31UH,Information Technology,ICT Services,ICT,Dell Computer Corporation Ltd,A000470,31/10/2019,1386077,780.45,Computing
North West Leicestershire District Council,31UH,Finance,Financial Planning,FINPLA,Venn Group Limited,A028530,30/10/2019,1386078,1260,Agency Staff
North West Leicestershire District Council,31UH,Housing,HRA Performance & Business Support,HRAPBS,Gresham Office Furniture Ltd,A045276,30/10/2019,1386081,520,Office Furniture
North West Leicestershire District Council,31UH,Finance,Revenues,REVS,Hinckley & Bosworth Borough Council,A000770,30/10/2019,1386087,17541,Shared Revs & Bens Partnership costs
North West Leicestershire District Council,31UH,Environmental Health,Environmental Health & Licensing,EEHL,Eville And Jones Limited,A033670,30/10/2019,1386051,519.5,Vet Inspection
North West Leicestershire District Council,31UH,Information Technology,ICT Services,ICT,Stone Computers Ltd,A023214,30/10/2019,1386112,391.4,Operational Equipment
North West Leicestershire District Council,31UH,Information Technology,ICT Services,ICT,Kingsfield Computer Products Ltd,A039732,30/10/2019,1386122,577.51,Operational Equipment
North West Leicestershire District Council,31UH,Housing Strategy,Community - Housing Strategy,HS,Home Connections Lettings Ltd,A044386,30/10/2019,1386125,7000,Computing
North West Leicestershire District Council,31UH,Street Management,Environment Transport,ENOT,Westbury Industrial Supplies Limited,A009933,30/10/2019,1386139,752.76,Protective Clothing
North West Leicestershire District Council,31UH,Neighbourhoods & Communities,N & C Community Safety,NACCS,One Stop Promotions (Leics) Ltd,A001240,30/10/2019,1386142,348.95,Event Expenditure
North West Leicestershire District Council,31UH,Property Services,Property Facilities Management,PROPFM,John Merison BMC Ltd,A001092,30/10/2019,1386191,7413.5,General Repairs
North West Leicestershire District Council,31UH,Planning & Development,Environment Planning Policy,EPP,Peter Brett Associates LLP,A028258,30/10/2019,1386126,12159.5,Legal & Professional Services
North West Leicestershire District Council,31UH,Street Management,Environment Transport,ENOT,Digraph Transport Supplies Ltd,A000486,30/10/2019,1386141,1144.76,Batteries
North West Leicestershire District Council,31UH,Street Management,Environment Waste Management,ENOWM,Glasdon UK Ltd,A000671,30/10/2019,1386138,2421.3,Environmental and Safety Products
North West Leicestershire District Council,31UH,Housing Repairs,HRA Housing Repairs & Maintenance,HRAHRM,Morgan Lambert Limited,A044192,02/10/2019,1384819,478.8,Consultants Fees
North West Leicestershire District Council,31UH,Housing,HRA Housing Management,HRAHM,PPG Architectural Coatings Ltd,A000876,02/10/2019,1384829,2285.22,Internal Decorations
North West Leicestershire District Council,31UH,Housing Repairs,HRA Housing Repairs & Maintenance,HRAHRM,Morgan Lambert Limited,A044192,02/10/2019,1384846,638.4,Consultants Fees
North West Leicestershire District Council,31UH,Housing Repairs,HRA Housing Repairs & Maintenance,HRAHRM,Morgan Lambert Limited,A044192,02/10/2019,1384847,798,Consultants Fees
North West Leicestershire District Council,31UH,Finance,Exchequer Services,EXCH,Comensura Limited,A036958,02/10/2019,1384850,22339.51,Agency Staff
North West Leicestershire District Council,31UH,Finance,Exchequer Services,EXCH,Click Travel Ltd,A044308,02/10/2019,1384870,1894.45,Travel and Accomodation
North West Leicestershire District Council,31UH,Street Management,Environment Parks,ENOP,ERA,A045554,02/10/2019,1384871,-254.3,Operational Purchases
North West Leicestershire District Council,31UH,Housing,HRA Housing Management,HRAHM,Dawn Shorthouse,A045716,02/10/2019,1384879,250,Under Occupancy Incentives
North West Leicestershire District Council,31UH,Housing,HRA Housing Management,HRAHM,Joanna Sedgwick,A045714,02/10/2019,1384881,250,Under Occupancy Incentives
North West Leicestershire District Council,31UH,Housing,HRA Housing Management,HRAHM,Redacted - Personal Data,A042888,02/10/2019,1384891,250,Compensation
North West Leicestershire District Council,31UH,Street Management,Environment - Street Scene,ESS,Water Plus Limited,A044043,02/10/2019,1384914,285.8,Water Charges (Metered)
North West Leicestershire District Council,31UH,Finance,Financial Planning,FINPLA,Municipal Mutual Insurance Ltd,A041117,30/10/2019,1386088,369,Compensation
North West Leicestershire District Council,31UH,Street Management,Environment - Street Scene,ESS,Leicestershire County Council,A000950,02/10/2019,1384948,341.07,Parking Levy
North West Leicestershire District Council,31UH,Housing Strategy,Community - Housing Strategy,HS,The Bridge (East Midlands),A033578,02/10/2019,1384972,50000,Grants
North West Leicestershire District Council,31UH,Street Management,Environment - Street Scene,ESS,Co-Operative Funeral Service,A000358,02/10/2019,1384859,500,Welfare Funerals
North West Leicestershire District Council,31UH,Leisure Centres,Hood Park Leisure Centre,HPLC,Sports & Leisure Management Ltd,A045556,02/10/2019,1385083,295462,Contract Payments (Other) Ext
North West Leicestershire District Council,31UH,Street Management,Environment - Street Scene,ESS,The Co-operative Funeralcare,A023141,09/10/2019,1385333,500,Welfare Funerals
North West Leicestershire District Council,31UH,Housing Repairs,HRA Housing Repairs & Maintenance,HRAHRM,JLA Limited,A043639,09/10/2019,1385244,442,Cleaning & Domestic Equipment
North West Leicestershire District Council,31UH,Housing Repairs,HRA Housing Repairs & Maintenance,HRAHRM,JLA Limited,A043639,09/10/2019,1385245,282,Cleaning & Domestic Equipment
North West Leicestershire District Council,31UH,Housing Repairs,HRA Housing Repairs & Maintenance,HRAHRM,JLA Limited,A043639,09/10/2019,1385246,302,Cleaning & Domestic Equipment
North West Leicestershire District Council,31UH,Housing Repairs,HRA Housing Repairs & Maintenance,HRAHRM,JLA Limited,A043639,09/10/2019,1385247,302,Cleaning & Domestic Equipment
North West Leicestershire District Council,31UH,Information Technology,ICT Services,ICT,EE Ltd (Airtime),A018592,09/10/2019,1385250,3551.51,Mobile Telephones
North West Leicestershire District Council,31UH,Information Technology,ICT Services,ICT,EE Ltd (Airtime),A018592,09/10/2019,1385251,1909.19,Mobile Telephones
North West Leicestershire District Council,31UH,Finance,Exchequer Services,EXCH,HM Revenues & Customs,A038465,09/10/2019,1385276,1434,Payment To Inland Revenue
North West Leicestershire District Council,31UH,Housing Strategy,Community - Housing Strategy,HS,Victoria Hotel Ltd,A027377,09/10/2019,1385331,910,Accomodation
North West Leicestershire District Council,31UH,Housing Strategy,Community - Housing Strategy,HS,Victoria Hotel Ltd,A027377,09/10/2019,1385332,350,Accomodation
North West Leicestershire District Council,31UH,Street Management,Environment - Street Scene,ESS,The Co-operative Funeralcare,A023141,23/10/2019,1385773,500,Welfare Funerals
North West Leicestershire District Council,31UH,Neighbourhoods & Communities,N & C Neighbourhoods,NACN,Coalville Town Bowls Club,A034211,09/10/2019,1385338,500,Grants
North West Leicestershire District Council,31UH,Housing Repairs,HRA Housing Repairs & Maintenance,HRAHRM,Robert Woodhead Ltd,A043924,09/10/2019,1385339,72708.41,Legal & Professional Services
North West Leicestershire District Council,31UH,Housing,HRA Housing Management,HRAHM,Leicestershire County Council,A000950,09/10/2019,1385340,7035.58,Parking Levy
North West Leicestershire District Council,31UH,Planning & Development,Environment Planning Policy,EPP,Landmark Planning Ltd,A027579,09/10/2019,1385232,462,Planning Application - Charges
North West Leicestershire District Council,31UH,Economic Development,Business Focus Group,BFG,Redacted - Personal Data,A045724,02/10/2019,1385040,500,Grants
North West Leicestershire District Council,31UH,Economic Development,Business Focus Group,BFG,Redacted - Personal Data,A045771,30/10/2019,1385951,500,Grants
North West Leicestershire District Council,31UH,Housing,HRA Housing Management,HRAHM,Redacted - Personal Data,A045736,09/10/2019,1385356,1000,Under Occupancy Incentives
North West Leicestershire District Council,31UH,Housing,HRA Housing Management,HRAHM,Redacted - Personal Data,A045737,09/10/2019,1385358,250,Under Occupancy Incentives
North West Leicestershire District Council,31UH,Finance,Financial Planning,FINPLA,Please Hold UK,A043591,03/10/2019,1385088,3185,Contract Payments (Other) Ext
North West Leicestershire District Council,31UH,Finance,Financial Planning,FINPLA,Cornwall  Council,A031018,03/10/2019,1385089,34845.89,Policy Lending
North West Leicestershire District Council,31UH,Finance,Financial Planning,FINPLA,Department for Communities & Local Government,A028518,03/10/2019,1385090,1229665,Subsidy Receipts & Repayments
North West Leicestershire District Council,31UH,Finance,Financial Planning,FINPLA,Leicestershire County Council,A000950,03/10/2019,1385091,4399445,Precept
North West Leicestershire District Council,31UH,Finance,Financial Planning,FINPLA,Leicestershire County Council,A000950,03/10/2019,1385094,3208668,Precept
North West Leicestershire District Council,31UH,Finance,Exchequer Services,EXCH,Leicestershire County Council,A000951,03/10/2019,1385095,274857.59,Pension Defecit Payment
North West Leicestershire District Council,31UH,Economic Development,Business Focus Group,BFG,Redacted - Personal Data,A045770,30/10/2019,1385952,500,Grants
North West Leicestershire District Council,31UH,Neighbourhoods & Communities,N & C Community Safety,NACCS,The Fuel Factory,A045625,09/10/2019,1385144,281.25,Catering
North West Leicestershire District Council,31UH,Finance,Exchequer Services,EXCH,Bankers Automated,A000133,03/10/2019,1385098,829989.69,Purchase of Land/Buildings
North West Leicestershire District Council,31UH,Finance,Exchequer Services,EXCH,Bankers Automated,A000133,03/10/2019,1385099,2781.66,Purchase of Land/Buildings
North West Leicestershire District Council,31UH,Street Management,Environment Transport,ENOT,Post Office Limited,A008559,03/10/2019,1385100,1595,Licences - Road Fund Licence
North West Leicestershire District Council,31UH,Finance,Financial Planning,FINPLA,"Leicester, Leicestershire &",A028339,03/10/2019,1385102,226911,Precept
North West Leicestershire District Council,31UH,Finance,Financial Planning,FINPLA,Public Works Loan Board,A001340,03/10/2019,1385108,1000000,Policy Lending
North West Leicestershire District Council,31UH,Finance,Financial Planning,FINPLA,Public Works Loan Board,A001340,03/10/2019,1385109,67637.93,Policy Lending
North West Leicestershire District Council,31UH,Finance,Financial Planning,FINPLA,Public Works Loan Board,A001340,03/10/2019,1385110,560945.26,Policy Lending
North West Leicestershire District Council,31UH,Finance,Financial Planning,FINPLA,The Office of the Police and Crime Commissioner for Leicestershire,A007096,03/10/2019,1385112,759432.57,Precept
North West Leicestershire District Council,31UH,Property Services,Property Facilities Management,PROPFM,Water Plus Limited,A044043,09/10/2019,1385155,874.85,Water Charges (Metered)
North West Leicestershire District Council,31UH,Housing Repairs,HRA Housing Repairs & Maintenance,HRAHRM,Sure Maintenance Ltd,A040460,09/10/2019,1385190,273.67,Plumbing & Heating
North West Leicestershire District Council,31UH,Housing Repairs,HRA Housing Repairs & Maintenance,HRAHRM,Cawarden Company Limited,A045509,09/10/2019,1385194,10500,Contract Payments (Other) Ext
North West Leicestershire District Council,31UH,Housing Repairs,HRA Housing Repairs & Maintenance,HRAHRM,Cawarden Company Limited,A045509,09/10/2019,1385195,32500,Contract Payments (Other) Ext
North West Leicestershire District Council,31UH,Housing Repairs,HRA Housing Repairs & Maintenance,HRAHRM,Cawarden Company Limited,A045509,09/10/2019,1385196,18625,Contract Payments (Other) Ext
North West Leicestershire District Council,31UH,Housing Repairs,HRA Housing Repairs & Maintenance,HRAHRM,Cawarden Company Limited,A045509,09/10/2019,1385197,12000,Contract Payments (Other) Ext
North West Leicestershire District Council,31UH,Housing Repairs,HRA Housing Repairs & Maintenance,HRAHRM,DMW Environmental Safety Ltd,A044203,09/10/2019,1385198,3225.84,Legal & Professional Services
North West Leicestershire District Council,31UH,Corporate Director,Human Resources,HR,Volkswagen Financial Services,A043221,09/10/2019,1385205,2557,Vehicle leasing
North West Leicestershire District Council,31UH,Housing Repairs,HRA Housing Repairs & Maintenance,HRAHRM,G Purchase Construction Ltd,A032830,09/10/2019,1385211,2331.07,Housing repairs
North West Leicestershire District Council,31UH,Finance,Exchequer Services,EXCH,Leicestershire County Council,A000951,09/10/2019,1385213,29083.33,Parking Levy
North West Leicestershire District Council,31UH,Legal & Democratic,Electoral & Land Charges,LDELC,SCI Print Limited,A028974,09/10/2019,1385214,1721.63,External printing
North West Leicestershire District Council,31UH,Legal & Democratic,Electoral & Land Charges,LDELC,Electoral Reform Services Limited,A038581,09/10/2019,1385215,2741.87,Electoral Services Expenditure
North West Leicestershire District Council,31UH,Finance,Exchequer Services,EXCH,Comensura Limited,A036958,09/10/2019,1385216,32333.91,Agency Staff
North West Leicestershire District Council,31UH,Neighbourhoods & Communities,N & C Community Safety,NACCS,Bag It Don't Bin It,A035112,30/10/2019,1386058,1575,Environmental and Safety Products,,,check who raised po and check with them
North West Leicestershire District Council,31UH,Housing Repairs,HRA Housing Repairs & Maintenance,HRAHRM,G Purchase Construction Ltd,A032830,09/10/2019,1385235,5431.27,Housing repairs
North West Leicestershire District Council,31UH,Housing Repairs,HRA Housing Repairs & Maintenance,HRAHRM,G Purchase Construction Ltd,A032830,09/10/2019,1385236,7121.04,Housing repairs
North West Leicestershire District Council,31UH,Legal & Democratic,Electoral & Land Charges,LDELC,Royal Mail Group Plc,A001418,09/10/2019,1385237,2335.08,Postages
North West Leicestershire District Council,31UH,Neighbourhoods & Communities,N & C Community Safety,NACCS,Friends of Coalville Park,A045568,15/10/2019,1385551,450,Grants
North West Leicestershire District Council,31UH,Finance,Exchequer Services,EXCH,Click Travel Ltd,A044308,09/10/2019,1385240,1444,Travel and Accomodation
North West Leicestershire District Council,31UH,Neighbourhoods & Communities,N & C Neighbourhoods,NACN,Friends of Coalville Park,A045568,30/10/2019,1386217,250,Grants
North West Leicestershire District Council,31UH,Property Services,Property Facilities Management,PROPFM,Redacted - Personal Data,A045738,15/10/2019,1385440,500,Compensation
North West Leicestershire District Council,31UH,Finance,Exchequer Services,EXCH,Comensura Limited,A036958,15/10/2019,1385462,29990.87,Agency Staff
North West Leicestershire District Council,31UH,Legal & Democratic,Legal Services,LDLS,No 5 Chambers Ltd,A022238,15/10/2019,1385464,750,Legal & Professional Services
North West Leicestershire District Council,31UH,Leisure & Culture,Sport & Physical Activity,SPA,Redacted - Personal Data,A045741,15/10/2019,1385467,480,Grants
North West Leicestershire District Council,31UH,Leisure & Culture,Sport & Physical Activity,SPA,Redacted - Personal Data,A045740,15/10/2019,1385468,400,Grants
North West Leicestershire District Council,31UH,Leisure & Culture,Sport & Physical Activity,SPA,Measham Leisure Centre,A027454,15/10/2019,1385469,491,Measham LC Lifestyle DD
North West Leicestershire District Council,31UH,Housing Repairs,HRA Housing Repairs & Maintenance,HRAHRM,Sure Maintenance Ltd,A040460,15/10/2019,1385472,11206.23,Plumbing & Heating
North West Leicestershire District Council,31UH,Housing Repairs,HRA Housing Repairs & Maintenance,HRAHRM,Sure Maintenance Ltd,A040460,15/10/2019,1385473,873.88,Plumbing & Heating
North West Leicestershire District Council,31UH,Housing Repairs,HRA Housing Repairs & Maintenance,HRAHRM,Sure Maintenance Ltd,A040460,15/10/2019,1385474,1403.72,Plumbing & Heating
North West Leicestershire District Council,31UH,Housing Repairs,HRA Housing Repairs & Maintenance,HRAHRM,Sure Maintenance Ltd,A040460,15/10/2019,1385475,273.67,Plumbing & Heating
North West Leicestershire District Council,31UH,Housing Repairs,HRA Housing Repairs & Maintenance,HRAHRM,Kaefer Ltd,A044187,15/10/2019,1385476,8845.15,Contract Payments (Dws) Ext
North West Leicestershire District Council,31UH,Housing,HRA Housing Management,HRAHM,Redacted - Personal Data,A045727,09/10/2019,1385239,250,Compensation
North West Leicestershire District Council,31UH,Street Management,Environment Transport,ENOT,Boc Limited,A000193,15/10/2019,1385489,370.67,Operational Purchases
North West Leicestershire District Council,31UH,Leisure Centres,Hermitage Leisure Centre,HLC,William Freer Ltd,A000639,15/10/2019,1385506,935,General Repairs
North West Leicestershire District Council,31UH,Finance,Exchequer Services,EXCH,Click Travel Ltd,A044308,15/10/2019,1385520,2355.67,Travel and Accomodation
North West Leicestershire District Council,31UH,Housing Strategy,Community - Housing Strategy,HS,Redacted - Personal Data,A036899,15/10/2019,1385523,475,Rent Deposit Scheme
North West Leicestershire District Council,31UH,Housing Repairs,HRA Housing Repairs & Maintenance,HRAHRM,Morgan Lambert Limited,A044192,15/10/2019,1385524,718.2,Consultants Fees
North West Leicestershire District Council,31UH,Finance,Financial Planning,FINPLA,LAVAT Consulting Limited,A035908,15/10/2019,1385528,2200,Consultants Fees
North West Leicestershire District Council,31UH,Housing Repairs,HRA Housing Repairs & Maintenance,HRAHRM,G Purchase Construction Ltd,A032830,15/10/2019,1385529,2333.98,Housing repairs
North West Leicestershire District Council,31UH,Housing Repairs,HRA Housing Repairs & Maintenance,HRAHRM,G Purchase Construction Ltd,A032830,15/10/2019,1385530,1777.51,Housing repairs
North West Leicestershire District Council,31UH,Housing Repairs,HRA Housing Repairs & Maintenance,HRAHRM,G Purchase Construction Ltd,A032830,15/10/2019,1385531,3094.82,Housing repairs
North West Leicestershire District Council,31UH,Housing Repairs,HRA Housing Repairs & Maintenance,HRAHRM,G Purchase Construction Ltd,A032830,15/10/2019,1385532,1278,Housing repairs
North West Leicestershire District Council,31UH,Finance,Financial Planning,FINPLA,EMH Homes,A039302,15/10/2019,1385533,105000,Training Expenses
North West Leicestershire District Council,31UH,Housing Strategy,Community - Housing Strategy,HS,PTP Training & Marketing Ltd,A045753,23/10/2019,1385750,460,Training Courses and Expenses
North West Leicestershire District Council,31UH,Housing Repairs,HRA Housing Repairs & Maintenance,HRAHRM,Everwarm Limited,A044582,15/10/2019,1385552,66941.81,Contract Payments (Dws) Ext
North West Leicestershire District Council,31UH,Housing Repairs,HRA Housing Repairs & Maintenance,HRAHRM,Morgan Lambert Limited,A044192,15/10/2019,1385553,359.1,Consultants Fees
North West Leicestershire District Council,31UH,Housing Repairs,HRA Housing Repairs & Maintenance,HRAHRM,European Asbestos Services Ltd,A045507,15/10/2019,1385554,3879.92,Contract Payments (Other) Ext
North West Leicestershire District Council,31UH,Housing Repairs,HRA Housing Repairs & Maintenance,HRAHRM,Sure Maintenance Ltd,A040460,15/10/2019,1385555,901.22,Plumbing & Heating
North West Leicestershire District Council,31UH,Housing Repairs,HRA Housing Repairs & Maintenance,HRAHRM,Sure Maintenance Ltd,A040460,15/10/2019,1385556,18670.04,Plumbing & Heating
North West Leicestershire District Council,31UH,Housing Repairs,HRA Housing Repairs & Maintenance,HRAHRM,Sure Maintenance Ltd,A040460,15/10/2019,1385557,12210.71,Plumbing & Heating
North West Leicestershire District Council,31UH,Housing Repairs,HRA Housing Repairs & Maintenance,HRAHRM,Sure Maintenance Ltd,A040460,15/10/2019,1385558,499.36,Plumbing & Heating
North West Leicestershire District Council,31UH,Legal & Democratic,Electoral & Land Charges,LDELC,Twofold Ltd,A041261,15/10/2019,1385561,329.97,Computing
North West Leicestershire District Council,31UH,Legal & Democratic,Electoral & Land Charges,LDELC,Royal Mail Group Plc,A001418,15/10/2019,1385562,470.67,Postages
North West Leicestershire District Council,31UH,Legal & Democratic,Legal Services,LDLS,Thomson Reuters (Professional) UK Limited,A037595,15/10/2019,1385563,453.75,Computing
North West Leicestershire District Council,31UH,Housing Strategy,Community - Housing Strategy,HS,Harborough District Council,A008631,15/10/2019,1385565,4800,Contaminated Land Officer- Shared Costs
North West Leicestershire District Council,31UH,Housing Strategy,Community - Housing Strategy,HS,Blaby District Council,A000180,15/10/2019,1385566,4800,Contributions
North West Leicestershire District Council,31UH,Housing Strategy,Community - Housing Strategy,HS,Melton Borough Council,A001086,15/10/2019,1385567,4800,Contributions
North West Leicestershire District Council,31UH,Finance,Financial Planning,FINPLA,Sports & Leisure Management Ltd,A045556,15/10/2019,1385587,147731,Contract Payments (Other) Ext
North West Leicestershire District Council,31UH,Housing,HRA Housing Management,HRAHM,St John Ambulance,A031195,15/10/2019,1385496,270,Training Expenses
North West Leicestershire District Council,31UH,Housing,HRA Housing Management,HRAHM,Friends of Greenhill Tenants Association,A045773,30/10/2019,1386083,600,Grants
North West Leicestershire District Council,31UH,Housing,HRA Housing Management,HRAHM,Redacted - Personal Data,A045306,15/10/2019,1385596,1000,Under Occupancy Incentives
North West Leicestershire District Council,31UH,Finance,Exchequer Services,EXCH,Inland Revenue,A027321,03/10/2019,1385096,603.8,Payment To Inland Revenue
North West Leicestershire District Council,31UH,Finance,Exchequer Services,EXCH,Inland Revenue,A027321,03/10/2019,1385097,292349.82,Payment To Inland Revenue
North West Leicestershire District Council,31UH,Communications,Corporate - Communications,CP,Neopost Limited,A000079,23/10/2019,1385764,4000,Equipment Operating Leases
North West Leicestershire District Council,31UH,Finance,Exchequer Services,EXCH,Click Travel Ltd,A044308,23/10/2019,1385766,1773.18,Travel and Accomodation
North West Leicestershire District Council,31UH,Street Management,Environment - Street Scene,ESS,Kings Armoured Security Services Ltd,A004468,23/10/2019,1385768,1113.93,Cash in Transit Service
North West Leicestershire District Council,31UH,Finance,Exchequer Services,EXCH,Comensura Limited,A036958,23/10/2019,1385771,31488.13,Agency Staff
North West Leicestershire District Council,31UH,Housing Strategy,Community - Housing Strategy,HS,Victoria Hotel Ltd,A027377,23/10/2019,1385779,350,Accomodation
North West Leicestershire District Council,31UH,Housing Strategy,Community - Housing Strategy,HS,Victoria Hotel Ltd,A027377,23/10/2019,1385780,910,Accomodation
North West Leicestershire District Council,31UH,Legal & Democratic,Electoral & Land Charges,LDELC,Royal Mail Group Plc,A001418,23/10/2019,1385816,1500,Postages
North West Leicestershire District Council,31UH,Finance,Financial Planning,FINPLA,Leicestershire County Council,A000950,23/10/2019,1385835,4600.62,Parking Levy
North West Leicestershire District Council,31UH,Property Services,Property Commercial Lettings,PROPCL,British Telecommunications Plc,A000233,23/10/2019,1385843,544.95,Telephones
North West Leicestershire District Council,31UH,Street Management,Environment - Street Scene,ESS,Water Plus Limited,A044043,23/10/2019,1385844,251.99,Water Charges (Metered)
North West Leicestershire District Council,31UH,Street Management,Environment - Street Scene,ESS,Water Plus Limited,A044043,23/10/2019,1385847,299.53,Water Charges (Metered)
North West Leicestershire District Council,31UH,Street Management,Environment - Street Scene,ESS,Water Plus Limited,A044043,23/10/2019,1385848,508.64,Water Charges (Metered)
North West Leicestershire District Council,31UH,Street Management,Environment - Street Scene,ESS,Water Plus Limited,A044043,23/10/2019,1385849,2981.6,Water Charges (Metered)
North West Leicestershire District Council,31UH,Street Management,Environment - Street Scene,ESS,Water Plus Limited,A044043,23/10/2019,1385851,255.9,Water Charges (Metered)
North West Leicestershire District Council,31UH,Street Management,Environment - Street Scene,ESS,Water Plus Limited,A044043,23/10/2019,1385852,327.16,Water Charges (Metered)
North West Leicestershire District Council,31UH,Finance,Exchequer Services,EXCH,Everyone Active,A045678,23/10/2019,1385931,288,Premises Rents
North West Leicestershire District Council,31UH,Leisure & Culture,Leisure & Cult Mangt,LCM,Oaklands Hotels Ltd T/A The Royal Hotel,A001421,23/10/2019,1385934,6174.9,Parking Income
North West Leicestershire District Council,31UH,Housing,HRA Housing Management,HRAHM,Redacted - Personal Data,A045766,23/10/2019,1385935,500,Under Occupancy Incentives
North West Leicestershire District Council,31UH,Communications,Corporate - Customer Services,CS,Neopost Limited,A000079,23/10/2019,1385944,1478.53,Equipment Operating Leases
North West Leicestershire District Council,31UH,Street Management,Environment Transport,ENOT,Post Office Limited,A008559,23/10/2019,1385945,2175,Licences - Road Fund Licence
North West Leicestershire District Council,31UH,Housing,HRA Housing Management,HRAHM,H M C S,A033868,24/10/2019,1386014,2638,Legal & Professional Services
North West Leicestershire District Council,31UH,Corporate Director,Human Resources,HR,The Disclosure & Barring Service,A027625,24/10/2019,1386015,466,DBS Checks
North West Leicestershire District Council,31UH,Finance,Exchequer Services,EXCH,Total Gas & Power,A033385,24/10/2019,1386016,14129.87,Electricity
North West Leicestershire District Council,31UH,Finance,Exchequer Services,EXCH,Lloyds Bank Plc,A042250,24/10/2019,1386018,1920.58,Policy Lending
North West Leicestershire District Council,31UH,Finance,Exchequer Services,EXCH,Lloyds Bank Plc,A042250,24/10/2019,1386019,820.67,Policy Lending
North West Leicestershire District Council,31UH,Finance,Exchequer Services,EXCH,ESPO,A000958,24/10/2019,1386020,4768.48,Operational Equipment
North West Leicestershire District Council,31UH,Finance,Financial Planning,FINPLA,Blackrock Cash Management,A039249,24/10/2019,1386021,1000000,Policy Lending
North West Leicestershire District Council,31UH,Finance,Financial Planning,FINPLA,Scottish Widows Investment Partnerhiip,A039247,24/10/2019,1386022,5700000,Policy Lending
North West Leicestershire District Council,31UH,Finance,Financial Planning,FINPLA,Goldman Sachs Money Market Fund,A039248,24/10/2019,1386023,6700000,Policy Lending
North West Leicestershire District Council,31UH,Finance,Financial Planning,FINPLA,Royal Bank of Scotland Call A/c,A040451,24/10/2019,1386024,900000,Policy Lending
North West Leicestershire District Council,31UH,Finance,Exchequer Services,EXCH,Total Gas & Power,A033385,24/10/2019,1386027,14774.53,Electricity
North West Leicestershire District Council,31UH,Street Management,Environment - Street Scene,ESS,College Garth Ltd T/A College Garth Kennels,A000385,30/10/2019,1385958,2176.16,Stray Dog Service
North West Leicestershire District Council,31UH,Leisure & Culture,Cultural Services Arts & Events,CULTEV,Ashby Dramatic Society,A021686,30/10/2019,1385961,1117.8,Ticket purchases
North West Leicestershire District Council,31UH,Leisure & Culture,Cultural Services Arts & Events,CULTEV,Ashby Dramatic Society,A027431,30/10/2019,1385962,351,Ticket purchases
North West Leicestershire District Council,31UH,Street Management,Environment Parks,ENOP,Water Plus Limited,A044043,30/10/2019,1385994,491.04,Water Charges (Metered)
North West Leicestershire District Council,31UH,Housing,HRA Housing Management,HRAHM,JLA Limited,A043639,30/10/2019,1385995,412,Cleaning & Domestic Equipment
North West Leicestershire District Council,31UH,Housing,HRA Housing Management,HRAHM,JLA Limited,A043639,30/10/2019,1385996,427.84,Cleaning & Domestic Equipment
North West Leicestershire District Council,31UH,Housing,HRA Housing Management,HRAHM,JLA Limited,A043639,30/10/2019,1385997,991.84,Cleaning & Domestic Equipment
North West Leicestershire District Council,31UH,Housing,HRA Housing Management,HRAHM,JLA Limited,A043639,30/10/2019,1385999,427.84,Cleaning & Domestic Equipment
North West Leicestershire District Council,31UH,Housing,HRA Housing Management,HRAHM,PPG Architectural Coatings Ltd,A000876,30/10/2019,1386009,2076.56,Internal Decorations
North West Leicestershire District Council,31UH,Finance,Exchequer Services,EXCH,Click Travel Ltd,A044308,30/10/2019,1386011,3359.38,Travel and Accomodation
North West Leicestershire District Council,31UH,Housing,HRA Housing Management,HRAHM,Summers Inman,A045758,30/10/2019,1386012,1000,Legal & Professional Services
North West Leicestershire District Council,31UH,Finance,Exchequer Services,EXCH,Comensura Limited,A036958,30/10/2019,1386031,26645.4,Agency Staff
North West Leicestershire District Council,31UH,Finance,Exchequer Services,EXCH,Click Travel Ltd,A044308,30/10/2019,1386070,1449.33,Travel and Accomodation
North West Leicestershire District Council,31UH,Housing Repairs,HRA Housing Repairs & Maintenance,HRAHRM,CLC Contractors Ltd,A044213,30/10/2019,1386085,26836.71,Fire Prevention and Maintenance
North West Leicestershire District Council,31UH,Leisure & Culture,Sport & Physical Activity,SPA,Willesley TARA,A007855,30/10/2019,1386120,488.64,Grants
North West Leicestershire District Council,31UH,Legal & Democratic,Legal Services,LDLS,Redacted - Personal Data,A044312,30/10/2019,1386219,500,Training Courses and Expenses
North West Leicestershire District Council,31UH,Finance,Exchequer Services,EXCH,Lex Autolease,A033523,30/10/2019,1386223,3211.93,Vehicle Leasing
North West Leicestershire District Council,31UH,Housing,HRA Housing Management,HRAHM,ESPO,A000958,31/10/2019,1386204,1237.31,Operational Equipment
North West Leicestershire District Council,31UH,Housing Repairs,HRA Housing Repairs & Maintenance,HRAHRM,Orbis Property Protection Ltd,A028149,02/10/2019,1384976,1007.43,Void Property Clearance Services
North West Leicestershire District Council,31UH,Housing Repairs,HRA Housing Repairs & Maintenance,HRAHRM,H20 Utilities Ltd,A043865,02/10/2019,1384977,700,Associated Drainage Services
North West Leicestershire District Council,31UH,Housing Repairs,HRA Housing Repairs & Maintenance,HRAHRM,Orbis Property Protection Ltd,A028149,02/10/2019,1384978,382.81,Void Property Clearance Services
North West Leicestershire District Council,31UH,Housing Repairs,HRA Housing Repairs & Maintenance,HRAHRM,Orbis Property Protection Ltd,A028149,02/10/2019,1384980,363.25,Void Property Clearance Services
North West Leicestershire District Council,31UH,Housing Repairs,HRA Housing Repairs & Maintenance,HRAHRM,Orbis Property Protection Ltd,A028149,02/10/2019,1385065,1516.77,Void Property Clearance Services
North West Leicestershire District Council,31UH,Housing Repairs,HRA Housing Repairs & Maintenance,HRAHRM,H20 Utilities Ltd,A043865,02/10/2019,1385072,700,Associated Drainage Services
North West Leicestershire District Council,31UH,Housing Repairs,HRA Housing Repairs & Maintenance,HRAHRM,TECSERV UK LIMITED,A028261,02/10/2019,1385073,510.08,Door Entry Systems
North West Leicestershire District Council,31UH,Housing Repairs,HRA Housing Repairs & Maintenance,HRAHRM,Emperor Scaffolding Limited,A038405,02/10/2019,1385074,390,Hire Of Operational Equipment
North West Leicestershire District Council,31UH,Housing Repairs,HRA Housing Repairs & Maintenance,HRAHRM,H20 Utilities Ltd,A043865,02/10/2019,1385078,350,Associated Drainage Services
North West Leicestershire District Council,31UH,Housing Repairs,HRA Housing Repairs & Maintenance,HRAHRM,Laker BMS Ltd,A031787,02/10/2019,1385079,3000,Housing Repairs
North West Leicestershire District Council,31UH,Housing Repairs,HRA Housing Repairs & Maintenance,HRAHRM,Leicestershire County Council,A000950,02/10/2019,1385080,372.03,Parking Levy
North West Leicestershire District Council,31UH,Housing Repairs,HRA Housing Repairs & Maintenance,HRAHRM,Laker BMS Ltd,A031787,02/10/2019,1385082,4290,Housing Repairs
North West Leicestershire District Council,31UH,Housing Repairs,HRA Housing Repairs & Maintenance,HRAHRM,TECSERV UK LIMITED,A028261,15/10/2019,1385690,354.43,Door Entry Systems
North West Leicestershire District Council,31UH,Housing Repairs,HRA Housing Repairs & Maintenance,HRAHRM,Geze Uk Limited,A023130,15/10/2019,1385691,320,Lift maintenance
North West Leicestershire District Council,31UH,Housing Repairs,HRA Housing Repairs & Maintenance,HRAHRM,Emperor Scaffolding Limited,A038405,15/10/2019,1385694,375,Hire Of Operational Equipment
North West Leicestershire District Council,31UH,Housing Repairs,HRA Housing Repairs & Maintenance,HRAHRM,Laker BMS Ltd,A031787,15/10/2019,1385696,5346.27,Housing Repairs
North West Leicestershire District Council,31UH,Housing Repairs,HRA Housing Repairs & Maintenance,HRAHRM,Laker BMS Ltd,A031787,15/10/2019,1385699,5889.11,Housing Repairs
North West Leicestershire District Council,31UH,Housing Repairs,HRA Housing Repairs & Maintenance,HRAHRM,Laker BMS Ltd,A031787,15/10/2019,1385700,4887.89,Housing Repairs
North West Leicestershire District Council,31UH,Housing Repairs,HRA Housing Repairs & Maintenance,HRAHRM,TECSERV UK LIMITED,A028261,15/10/2019,1385702,435,Door Entry Systems
North West Leicestershire District Council,31UH,Housing Repairs,HRA Housing Repairs & Maintenance,HRAHRM,Orbis Property Protection Ltd,A028149,15/10/2019,1385704,267.55,Void Property Clearance Services
North West Leicestershire District Council,31UH,Housing Repairs,HRA Housing Repairs & Maintenance,HRAHRM,TECSERV UK LIMITED,A028261,15/10/2019,1385706,315.58,Door Entry Systems
North West Leicestershire District Council,31UH,Housing Repairs,HRA Housing Repairs & Maintenance,HRAHRM,TECSERV UK LIMITED,A028261,15/10/2019,1385707,425.44,Door Entry Systems
North West Leicestershire District Council,31UH,Housing Repairs,HRA Housing Repairs & Maintenance,HRAHRM,TECSERV UK LIMITED,A028261,15/10/2019,1385708,316.58,Door Entry Systems
North West Leicestershire District Council,31UH,Housing Repairs,HRA Housing Repairs & Maintenance,HRAHRM,Laker BMS Ltd,A031787,15/10/2019,1385709,4989,Housing Repairs
North West Leicestershire District Council,31UH,Housing Repairs,HRA Housing Repairs & Maintenance,HRAHRM,Laker BMS Ltd,A031787,15/10/2019,1385710,5559.53,Housing Repairs
North West Leicestershire District Council,31UH,Housing Repairs,HRA Housing Repairs & Maintenance,HRAHRM,Orbis Property Protection Ltd,A028149,15/10/2019,1385716,334.43,Void Property Clearance Services
North West Leicestershire District Council,31UH,Housing Repairs,HRA Housing Repairs & Maintenance,HRAHRM,Cadent Gas limited,A032629,15/10/2019,1385717,600,Contract Payments (Dws) Ext
North West Leicestershire District Council,31UH,Housing Repairs,HRA Housing Repairs & Maintenance,HRAHRM,Cadent Gas limited,A032629,15/10/2019,1385718,600,Contract Payments (Dws) Ext
North West Leicestershire District Council,31UH,Housing Repairs,HRA Housing Repairs & Maintenance,HRAHRM,Emperor Scaffolding Limited,A038405,23/10/2019,1385860,400,Hire Of Operational Equipment
North West Leicestershire District Council,31UH,Housing Repairs,HRA Housing Repairs & Maintenance,HRAHRM,Emperor Scaffolding Limited,A038405,23/10/2019,1385861,1975,Hire Of Operational Equipment
North West Leicestershire District Council,31UH,Housing Repairs,HRA Housing Repairs & Maintenance,HRAHRM,Emperor Scaffolding Limited,A038405,23/10/2019,1385862,1510,Hire Of Operational Equipment
North West Leicestershire District Council,31UH,Housing Repairs,HRA Housing Repairs & Maintenance,HRAHRM,Emperor Scaffolding Limited,A038405,23/10/2019,1385863,1690,Hire Of Operational Equipment
North West Leicestershire District Council,31UH,Housing Repairs,HRA Housing Repairs & Maintenance,HRAHRM,Emperor Scaffolding Limited,A038405,23/10/2019,1385864,730,Hire Of Operational Equipment
North West Leicestershire District Council,31UH,Housing Repairs,HRA Housing Repairs & Maintenance,HRAHRM,TECSERV UK LIMITED,A028261,23/10/2019,1385866,501.24,Door Entry Systems
North West Leicestershire District Council,31UH,Housing Repairs,HRA Housing Repairs & Maintenance,HRAHRM,Emperor Scaffolding Limited,A038405,23/10/2019,1385873,415,Hire Of Operational Equipment
North West Leicestershire District Council,31UH,Housing Repairs,HRA Housing Repairs & Maintenance,HRAHRM,Severn Trent Water Limited,A001468,30/10/2019,1386093,861.2,Conveyancing Searches
North West Leicestershire District Council,31UH,Housing Repairs,HRA Housing Repairs & Maintenance,HRAHRM,Premier Mobility UK Ltd,A045304,30/10/2019,1386094,4550,Contract Payments (Dws) Ext
North West Leicestershire District Council,31UH,Housing Repairs,HRA Housing Repairs & Maintenance,HRAHRM,Emperor Scaffolding Limited,A038405,30/10/2019,1386101,300,Hire Of Operational Equipment
North West Leicestershire District Council,31UH,Housing Repairs,HRA Housing Repairs & Maintenance,HRAHRM,Cadent Gas limited,A032629,30/10/2019,1386102,420,Contract Payments (Dws) Ext
North West Leicestershire District Council,31UH,Housing Repairs,HRA Housing Repairs & Maintenance,HRAHRM,Cadent Gas limited,A032629,30/10/2019,1386107,420,Contract Payments (Dws) Ext
